[Event "*** Titled Tuesday Blitz"]
[Site "Chess.com"]
[Date "2021.02.16"]
[Round "9"]
[White "PlotnikovPavel"]
[Black "Taktikmonster"]
[Result "0-1"]
[WhiteElo "2455"]
[BlackElo "2362"]
[TimeControl "180+1"]
[EndTime "11:46:17 PST"]
[Termination "Taktikmonster won by checkmate"]

1. e4 {[%clk 0:02:56.2]} 1... c5 {[%clk 0:02:59]} 2. Nc3 {[%clk 0:02:55.9]} 2...
Nc6 {[%clk 0:02:59]} 3. Bb5 {[%clk 0:02:54.1]} 3... Nd4 {[%clk 0:02:59.1]} 4.
Nf3 {[%clk 0:02:53.5]} 4... g6 {[%clk 0:02:59.2]} 5. O-O {[%clk 0:02:52.7]} 5...
Bg7 {[%clk 0:02:58.7]} 6. b3 {[%clk 0:02:47.4]} 6... Nxb5 {[%clk 0:02:56.9]} 7.
Nxb5 {[%clk 0:02:43.5]} 7... Bxa1 {[%clk 0:02:57.8]} 8. c3 {[%clk 0:02:43.7]}
8... Qa5 {[%clk 0:02:49.3]} 9. Na3 {[%clk 0:02:43.1]} 9... b5 {[%clk 0:02:41.6]}
10. Qc2 {[%clk 0:02:35.8]} 10... Ba6 {[%clk 0:02:36.2]} 11. Rd1 {[%clk
0:02:31.7]} 11... b4 {[%clk 0:02:31.4]} 12. Nb1 {[%clk 0:02:21.6]} 12... Be2
{[%clk 0:02:17]} 13. Re1 {[%clk 0:02:13.5]} 13... Bxf3 {[%clk 0:02:17.1]} 14.
gxf3 {[%clk 0:02:14.4]} 14... Nf6 {[%clk 0:02:13.1]} 15. e5 {[%clk 0:02:14.2]}
15... Nd5 {[%clk 0:02:04.3]} 16. Qe4 {[%clk 0:02:11.2]} 16... e6 {[%clk
0:02:02]} 17. a4 {[%clk 0:02:05.2]} 17... bxc3 {[%clk 0:01:55.8]} 18. dxc3
{[%clk 0:02:04.5]} 18... Bxc3 {[%clk 0:01:55.7]} 19. Rd1 {[%clk 0:02:02.5]}
19... Qb4 {[%clk 0:01:46.1]} 20. Qe2 {[%clk 0:02:00.9]} 20... Qxb3 {[%clk
0:01:43.5]} 21. Na3 {[%clk 0:02:00.5]} 21... Qxa4 {[%clk 0:01:00.8]} 22. Nc4
{[%clk 0:01:59.1]} 22... O-O {[%clk 0:00:55.7]} 23. Nd6 {[%clk 0:01:57.9]} 23...
Bxe5 {[%clk 0:00:51.1]} 24. Ne4 {[%clk 0:01:54.3]} 24... Bg7 {[%clk 0:00:47.9]}
25. Nxc5 {[%clk 0:01:49.3]} 25... Qc6 {[%clk 0:00:43.1]} 26. Ne4 {[%clk
0:01:48]} 26... f5 {[%clk 0:00:41]} 27. Ng5 {[%clk 0:01:47.3]} 27... Nc3 {[%clk
0:00:40.7]} 28. Qd2 {[%clk 0:01:42.3]} 28... Nxd1 {[%clk 0:00:39.7]} 29. Qxd1
{[%clk 0:01:43.2]} 29... h6 {[%clk 0:00:37.6]} 30. Ba3 {[%clk 0:01:44.1]} 30...
hxg5 {[%clk 0:00:37.1]} 31. Bxf8 {[%clk 0:01:41.4]} 31... Rxf8 {[%clk 0:00:38]}
32. Qb3 {[%clk 0:01:41.9]} 32... a5 {[%clk 0:00:35]} 33. Qa3 {[%clk 0:01:42.8]}
33... a4 {[%clk 0:00:35.1]} 34. f4 {[%clk 0:01:41.3]} 34... Rb8 {[%clk
0:00:34.3]} 35. h4 {[%clk 0:01:38.5]} 35... Rb1+ {[%clk 0:00:34.1]} 36. Kh2
{[%clk 0:01:39.4]} 36... Qh1+ {[%clk 0:00:34.1]} 37. Kg3 {[%clk 0:01:38.2]}
37... Rg1# {[%clk 0:00:35]} 0-1

[Event "*** Titled Tuesday Blitz"]
[Site "Chess.com"]
[Date "2021.02.16"]
[Round "9"]
[White "Natalya_Buksa"]
[Black "tteshan"]
[Result "1-0"]
[WhiteElo "2524"]
[BlackElo "2353"]
[TimeControl "180+1"]
[EndTime "11:46:19 PST"]
[Termination "Natalya_Buksa won by resignation"]

1. d4 {[%clk 0:02:57.4]} 1... d5 {[%clk 0:02:58.4]} 2. Nc3 {[%clk 0:02:57.9]}
2... Nf6 {[%clk 0:02:56.1]} 3. Bf4 {[%clk 0:02:58.4]} 3... c5 {[%clk 0:02:55.8]}
4. e3 {[%clk 0:02:57.7]} 4... Nc6 {[%clk 0:02:54.3]} 5. Nb5 {[%clk 0:02:57.3]}
5... e5 {[%clk 0:02:29.3]} 6. dxe5 {[%clk 0:02:56.6]} 6... Qa5+ {[%clk
0:02:18.8]} 7. c3 {[%clk 0:02:53]} 7... c4 {[%clk 0:02:12]} 8. a4 {[%clk
0:02:47]} 8... a6 {[%clk 0:02:05.5]} 9. exf6 {[%clk 0:02:42.5]} 9... axb5 {[%clk
0:02:02.8]} 10. Qxd5 {[%clk 0:02:42.8]} 10... gxf6 {[%clk 0:01:59.6]} 11. Nf3
{[%clk 0:02:35.1]} 11... Be6 {[%clk 0:01:54.9]} 12. Qe4 {[%clk 0:02:34.4]} 12...
Be7 {[%clk 0:01:45.9]} 13. Be2 {[%clk 0:02:33.5]} 13... bxa4 {[%clk 0:01:41.8]}
14. O-O {[%clk 0:02:32.5]} 14... f5 {[%clk 0:01:33.2]} 15. Qc2 {[%clk
0:02:31.3]} 15... b5 {[%clk 0:01:28.7]} 16. e4 {[%clk 0:02:27.5]} 16... fxe4
{[%clk 0:01:19.2]} 17. Qxe4 {[%clk 0:02:28.4]} 17... Rc8 {[%clk 0:01:16.6]} 18.
Ng5 {[%clk 0:02:27.6]} 18... Nd8 {[%clk 0:01:10.5]} 19. Bh5 {[%clk 0:02:21.8]}
19... Qa8 {[%clk 0:01:02.7]} 20. Qe2 {[%clk 0:02:16.7]} 20... Bxg5 {[%clk
0:00:55]} 21. Bxg5 {[%clk 0:02:15.4]} 21... Rg8 {[%clk 0:00:54.2]} 22. Bf3
{[%clk 0:02:15]} 22... Qa7 {[%clk 0:00:45.5]} 23. Bf4 {[%clk 0:02:14.5]} 23...
Qe7 {[%clk 0:00:37.5]} 24. Rad1 {[%clk 0:02:12.3]} 24... Rg6 {[%clk 0:00:32.8]}
25. Rfe1 {[%clk 0:02:11.7]} 25... Qf6 {[%clk 0:00:25.8]} 26. Bg3 {[%clk
0:02:10.5]} 26... Kf8 {[%clk 0:00:24.2]} 27. Qe4 {[%clk 0:02:02.5]} 27... Kg8
{[%clk 0:00:23.7]} 28. Bh4 {[%clk 0:02:00.7]} 28... Qg7 {[%clk 0:00:17]} 29.
Bxd8 {[%clk 0:01:59]} 29... Bh3 {[%clk 0:00:12.5]} 30. g3 {[%clk 0:01:57.5]}
30... Re6 {[%clk 0:00:10.8]} 31. Qh4 {[%clk 0:01:55.8]} 31... Rxe1+ {[%clk
0:00:09.9]} 32. Rxe1 {[%clk 0:01:55.8]} 32... Be6 {[%clk 0:00:07.7]} 33. Bd5
{[%clk 0:01:55.9]} 33... Bf5 {[%clk 0:00:06.9]} 1-0

[Event "*** Titled Tuesday Blitz"]
[Site "Chess.com"]
[Date "2021.02.16"]
[Round "9"]
[White "volunteers1998"]
[Black "AsaHoffmann"]
[Result "0-1"]
[WhiteElo "2122"]
[BlackElo "2364"]
[TimeControl "180+1"]
[EndTime "11:46:20 PST"]
[Termination "AsaHoffmann won on time"]

1. e4 {[%clk 0:03:00.9]} 1... d6 {[%clk 0:02:58.2]} 2. d4 {[%clk 0:02:58.5]}
2... Nf6 {[%clk 0:02:57]} 3. Nc3 {[%clk 0:02:55.4]} 3... c6 {[%clk 0:02:56.7]}
4. f4 {[%clk 0:02:51.7]} 4... Qa5 {[%clk 0:02:55.7]} 5. Bd3 {[%clk 0:02:48.5]}
5... e5 {[%clk 0:02:55]} 6. Nf3 {[%clk 0:02:45.3]} 6... exd4 {[%clk 0:02:41.3]}
7. Nxd4 {[%clk 0:02:42]} 7... Qb6 {[%clk 0:02:38.8]} 8. Be3 {[%clk 0:02:36]}
8... Ng4 {[%clk 0:02:29.8]} 9. Bg1 {[%clk 0:02:32.5]} 9... Qxb2 {[%clk
0:02:26.2]} 10. Nde2 {[%clk 0:02:30.9]} 10... Qa3 {[%clk 0:02:17]} 11. h3 {[%clk
0:02:24.9]} 11... Nf6 {[%clk 0:02:09.6]} 12. Be3 {[%clk 0:02:20.4]} 12... Be7
{[%clk 0:02:06]} 13. O-O {[%clk 0:02:17.9]} 13... O-O {[%clk 0:02:05.4]} 14. Qe1
{[%clk 0:02:08.2]} 14... d5 {[%clk 0:01:58.6]} 15. e5 {[%clk 0:01:09.4]} 15...
Bc5 {[%clk 0:01:48.8]} 16. Bxc5 {[%clk 0:00:05.8]} 16... Qxc5+ {[%clk
0:01:46.3]} 17. Kh1 {[%clk 0:00:04]} 17... Ne8 {[%clk 0:01:40]} 18. Qg3 {[%clk
0:00:03.3]} 18... Nd7 {[%clk 0:01:28.6]} 19. f5 {[%clk 0:00:02.5]} 19... f6
{[%clk 0:01:24.9]} 20. e6 {[%clk 0:00:01.2]} 20... Ne5 {[%clk 0:01:24.3]} 0-1

[Event "*** Titled Tuesday Blitz"]
[Site "Chess.com"]
[Date "2021.02.16"]
[Round "9"]
[White "Happy1712Drummer"]
[Black "Mazetovic"]
[Result "0-1"]
[WhiteElo "2465"]
[BlackElo "2706"]
[TimeControl "180+1"]
[EndTime "11:46:22 PST"]
[Termination "Mazetovic won by resignation"]

1. Nf3 {[%clk 0:02:59.5]} 1... c5 {[%clk 0:02:59.8]} 2. e4 {[%clk 0:02:52.4]}
2... Nc6 {[%clk 0:03:00.3]} 3. Bb5 {[%clk 0:02:50.9]} 3... g6 {[%clk 0:02:59.3]}
4. Bxc6 {[%clk 0:02:46.9]} 4... bxc6 {[%clk 0:02:58.2]} 5. Nc3 {[%clk
0:02:44.3]} 5... Bg7 {[%clk 0:02:58.3]} 6. O-O {[%clk 0:02:43.5]} 6... e6 {[%clk
0:02:57.8]} 7. e5 {[%clk 0:02:36.2]} 7... f6 {[%clk 0:02:45.2]} 8. Ne4 {[%clk
0:02:32]} 8... fxe5 {[%clk 0:02:43.6]} 9. c4 {[%clk 0:02:14.3]} 9... d6 {[%clk
0:02:42.1]} 10. b3 {[%clk 0:02:09.8]} 10... Ne7 {[%clk 0:02:28.1]} 11. d3 {[%clk
0:02:00]} 11... O-O {[%clk 0:02:24]} 12. Bb2 {[%clk 0:01:59.2]} 12... Nf5 {[%clk
0:02:18.9]} 13. Qd2 {[%clk 0:01:29.4]} 13... h6 {[%clk 0:02:13.1]} 14. Rae1
{[%clk 0:01:26.8]} 14... g5 {[%clk 0:02:12.4]} 15. h3 {[%clk 0:01:24.1]} 15...
Bd7 {[%clk 0:02:06.7]} 16. Nh2 {[%clk 0:01:08.6]} 16... Be8 {[%clk 0:02:04.7]}
17. g4 {[%clk 0:00:59.2]} 17... Nh4 {[%clk 0:01:54]} 18. f4 {[%clk 0:00:50.5]}
18... gxf4 {[%clk 0:01:48.2]} 19. d4 {[%clk 0:00:35.6]} 19... cxd4 {[%clk
0:01:47]} 20. c5 {[%clk 0:00:34.1]} 20... d5 {[%clk 0:01:42.8]} 21. Nd6 {[%clk
0:00:31.5]} 21... Bg6 {[%clk 0:01:41.9]} 22. Nf3 {[%clk 0:00:17]} 22... Nxf3+
{[%clk 0:01:37.5]} 23. Rxf3 {[%clk 0:00:17.9]} 23... Qg5 {[%clk 0:01:28]} 24. b4
{[%clk 0:00:16.1]} 24... e4 {[%clk 0:01:27.2]} 0-1

[Event "*** Titled Tuesday Blitz"]
[Site "Chess.com"]
[Date "2021.02.16"]
[Round "9"]
[White "bascheyaro"]
[Black "Bulldog167"]
[Result "1-0"]
[WhiteElo "2729"]
[BlackElo "2865"]
[TimeControl "180+1"]
[EndTime "11:46:25 PST"]
[Termination "bascheyaro won on time"]

1. d4 {[%clk 0:03:00.9]} 1... Nf6 {[%clk 0:02:59.3]} 2. c4 {[%clk 0:03:01]} 2...
c5 {[%clk 0:02:59.1]} 3. Nf3 {[%clk 0:03:01.3]} 3... e6 {[%clk 0:02:59.1]} 4.
Nc3 {[%clk 0:03:01.2]} 4... d5 {[%clk 0:02:59.1]} 5. cxd5 {[%clk 0:03:00.9]}
5... exd5 {[%clk 0:02:59.2]} 6. Bg5 {[%clk 0:03:00.1]} 6... Be6 {[%clk 0:02:48]}
7. e3 {[%clk 0:02:59.5]} 7... a6 {[%clk 0:02:32.5]} 8. Rc1 {[%clk 0:02:55.2]}
8... Nbd7 {[%clk 0:02:31.7]} 9. Bd3 {[%clk 0:02:52.2]} 9... Be7 {[%clk
0:02:29.5]} 10. O-O {[%clk 0:02:51.8]} 10... O-O {[%clk 0:02:29.3]} 11. Bb1
{[%clk 0:02:51.6]} 11... Rc8 {[%clk 0:02:27.4]} 12. h3 {[%clk 0:02:50.3]} 12...
c4 {[%clk 0:02:02.7]} 13. Ne5 {[%clk 0:02:50]} 13... b5 {[%clk 0:01:49.5]} 14.
a3 {[%clk 0:02:46.2]} 14... Nxe5 {[%clk 0:01:38.3]} 15. dxe5 {[%clk 0:02:45.8]}
15... Nd7 {[%clk 0:01:38.8]} 16. Bxe7 {[%clk 0:02:40.8]} 16... Qxe7 {[%clk
0:01:39.7]} 17. f4 {[%clk 0:02:33.2]} 17... Nb6 {[%clk 0:01:38.7]} 18. Qd4
{[%clk 0:02:30.9]} 18... Qc5 {[%clk 0:01:36]} 19. f5 {[%clk 0:02:30.2]} 19...
Bd7 {[%clk 0:01:33.4]} 20. f6 {[%clk 0:02:30]} 20... Qxd4 {[%clk 0:01:09.5]} 21.
exd4 {[%clk 0:02:30.9]} 21... Be6 {[%clk 0:01:10.1]} 22. fxg7 {[%clk 0:02:28.7]}
22... Kxg7 {[%clk 0:01:09.7]} 23. Rf6 {[%clk 0:02:29.1]} 23... Na4 {[%clk
0:00:51.1]} 24. Nxa4 {[%clk 0:02:19.9]} 24... bxa4 {[%clk 0:00:52]} 25. Rc3
{[%clk 0:02:20.1]} 25... Rg8 {[%clk 0:00:32.4]} 26. Rg3+ {[%clk 0:02:13.3]}
26... Kf8 {[%clk 0:00:32.4]} 27. Rgf3 {[%clk 0:02:13.4]} 27... Ke7 {[%clk
0:00:30.5]} 28. Bxh7 {[%clk 0:02:13.2]} 28... Rh8 {[%clk 0:00:28.7]} 29. Bf5
{[%clk 0:02:12.7]} 29... Bxf5 {[%clk 0:00:06.5]} 30. R3xf5 {[%clk 0:02:12.1]}
30... Rh7 {[%clk 0:00:07]} 31. Rxa6 {[%clk 0:02:11.8]} 31... Rb8 {[%clk
0:00:06.7]} 32. Ra7+ {[%clk 0:02:11.8]} 32... Kf8 {[%clk 0:00:06.4]} 33. e6
{[%clk 0:02:11.8]} 33... Rg7 {[%clk 0:00:02.3]} 34. g4 {[%clk 0:02:03.5]} 34...
Rxb2 {[%clk 0:00:02.1]} 35. e7+ {[%clk 0:02:03.7]} 35... Ke8 {[%clk 0:00:02.3]}
36. Rxd5 {[%clk 0:02:03.9]} 36... Rb8 {[%clk 0:00:02.3]} 37. Rad7 {[%clk
0:02:04]} 1-0

[Event "*** Titled Tuesday Blitz"]
[Site "Chess.com"]
[Date "2021.02.16"]
[Round "9"]
[White "Chesspirate_Channel"]
[Black "DanilNajdin"]
[Result "1-0"]
[WhiteElo "2327"]
[BlackElo "2445"]
[TimeControl "180+1"]
[EndTime "11:46:30 PST"]
[Termination "Chesspirate_Channel won by resignation"]

1. d4 {[%clk 0:03:00.9]} 1... f5 {[%clk 0:02:59.5]} 2. e4 {[%clk 0:03:00.4]}
2... fxe4 {[%clk 0:02:58.4]} 3. f3 {[%clk 0:03:00.4]} 3... exf3 {[%clk
0:02:54.3]} 4. Nxf3 {[%clk 0:03:01.3]} 4... Nf6 {[%clk 0:02:52.1]} 5. Bd3 {[%clk
0:03:00]} 5... e6 {[%clk 0:02:47.4]} 6. O-O {[%clk 0:02:58.4]} 6... Be7 {[%clk
0:02:44.4]} 7. Nc3 {[%clk 0:02:57.4]} 7... Nc6 {[%clk 0:02:35.9]} 8. Ne5 {[%clk
0:02:47.4]} 8... O-O {[%clk 0:02:32.7]} 9. Be3 {[%clk 0:02:41.7]} 9... d6 {[%clk
0:02:31.2]} 10. Ng4 {[%clk 0:02:28.3]} 10... e5 {[%clk 0:02:31.2]} 11. Nxf6+
{[%clk 0:02:16.7]} 11... Bxf6 {[%clk 0:02:30.5]} 12. d5 {[%clk 0:02:10]} 12...
Ne7 {[%clk 0:02:29]} 13. Ne4 {[%clk 0:01:59.4]} 13... Bf5 {[%clk 0:02:24.9]} 14.
Ng5 {[%clk 0:01:27.1]} 14... Bxg5 {[%clk 0:02:17.1]} 15. Bxg5 {[%clk 0:01:28]}
15... Bxd3 {[%clk 0:02:16.9]} 16. Qxd3 {[%clk 0:01:28.2]} 16... Rxf1+ {[%clk
0:02:14.9]} 17. Rxf1 {[%clk 0:01:29.1]} 17... Qd7 {[%clk 0:02:15.1]} 18. Qf3
{[%clk 0:01:22.9]} 18... Ng6 {[%clk 0:02:13.3]} 19. Qb3 {[%clk 0:01:15.1]} 19...
b6 {[%clk 0:02:09.5]} 20. h4 {[%clk 0:01:14.8]} 20... Rf8 {[%clk 0:02:06.9]} 21.
Rxf8+ {[%clk 0:00:58.5]} 21... Nxf8 {[%clk 0:02:06.4]} 22. Qc4 {[%clk
0:00:49.9]} 22... h6 {[%clk 0:02:03.6]} 23. Be3 {[%clk 0:00:45.8]} 23... a5
{[%clk 0:02:03.7]} 24. h5 {[%clk 0:00:43.3]} 24... Nh7 {[%clk 0:02:03.3]} 25. a3
{[%clk 0:00:40.3]} 25... Nf6 {[%clk 0:02:02.5]} 26. b4 {[%clk 0:00:39.9]} 26...
axb4 {[%clk 0:01:59.8]} 27. axb4 {[%clk 0:00:39.5]} 27... Nxh5 {[%clk
0:02:00.5]} 28. Qc6 {[%clk 0:00:36.9]} 28... Qxc6 {[%clk 0:01:58.1]} 29. dxc6
{[%clk 0:00:37.8]} 29... Kf7 {[%clk 0:01:58.4]} 30. Bxb6 {[%clk 0:00:36.5]}
30... Ke6 {[%clk 0:01:53.1]} 31. Bxc7 {[%clk 0:00:35.8]} 31... Kd5 {[%clk
0:01:53.4]} 32. b5 {[%clk 0:00:34.9]} 32... Nf4 {[%clk 0:01:51.9]} 33. c4+
{[%clk 0:00:29]} 33... Kc5 {[%clk 0:01:50.6]} 34. Bb8 {[%clk 0:00:26.4]} 34...
Kb6 {[%clk 0:01:48.6]} 35. Bxd6 {[%clk 0:00:26.4]} 35... Nd3 {[%clk 0:01:42.2]}
36. c5+ {[%clk 0:00:24.3]} 36... Ka7 {[%clk 0:01:39.8]} 37. b6+ {[%clk
0:00:24.2]} 37... Ka6 {[%clk 0:01:39.5]} 38. b7 {[%clk 0:00:24.2]} 1-0

[Event "*** Titled Tuesday Blitz"]
[Site "Chess.com"]
[Date "2021.02.16"]
[Round "9"]
[White "Sokoloco"]
[Black "Sanyura"]
[Result "1-0"]
[WhiteElo "2466"]
[BlackElo "2694"]
[TimeControl "180+1"]
[EndTime "11:46:33 PST"]
[Termination "Sokoloco won by checkmate"]

1. b3 {[%clk 0:02:58]} 1... e5 {[%clk 0:02:46]} 2. Bb2 {[%clk 0:02:58.4]} 2...
d6 {[%clk 0:02:46.3]} 3. e3 {[%clk 0:02:58.6]} 3... Nd7 {[%clk 0:02:46.5]} 4. d4
{[%clk 0:02:57.1]} 4... Ngf6 {[%clk 0:02:46.5]} 5. Nf3 {[%clk 0:02:56.2]} 5...
exd4 {[%clk 0:02:43]} 6. exd4 {[%clk 0:02:55.8]} 6... Be7 {[%clk 0:02:41.1]} 7.
Bd3 {[%clk 0:02:41.7]} 7... O-O {[%clk 0:02:42]} 8. O-O {[%clk 0:02:41.8]} 8...
a5 {[%clk 0:02:42.2]} 9. c4 {[%clk 0:02:34.4]} 9... a4 {[%clk 0:02:41.9]} 10. d5
{[%clk 0:02:13.7]} 10... Re8 {[%clk 0:02:36.4]} 11. b4 {[%clk 0:02:06.9]} 11...
c6 {[%clk 0:02:31.3]} 12. dxc6 {[%clk 0:02:03.2]} 12... bxc6 {[%clk 0:02:32.2]}
13. a3 {[%clk 0:02:01.3]} 13... Bf8 {[%clk 0:02:30.2]} 14. Nc3 {[%clk
0:02:00.3]} 14... Nb6 {[%clk 0:01:55.1]} 15. h3 {[%clk 0:01:50.9]} 15... Be6
{[%clk 0:01:51.5]} 16. Nd2 {[%clk 0:01:23.1]} 16... Qc8 {[%clk 0:01:40.8]} 17.
Qf3 {[%clk 0:01:16.5]} 17... Nbd7 {[%clk 0:01:30.1]} 18. Nce4 {[%clk 0:01:09.1]}
18... Nxe4 {[%clk 0:01:17.7]} 19. Nxe4 {[%clk 0:01:10]} 19... h6 {[%clk
0:01:10.1]} 20. Qg3 {[%clk 0:00:50.5]} 20... d5 {[%clk 0:00:54.8]} 21. cxd5
{[%clk 0:00:38]} 21... Bxd5 {[%clk 0:00:46.7]} 22. Nd6 {[%clk 0:00:38]} 22...
Bxd6 {[%clk 0:00:44.1]} 23. Qxg7# {[%clk 0:00:36.9]} 1-0

[Event "*** Titled Tuesday Blitz"]
[Site "Chess.com"]
[Date "2021.02.16"]
[Round "9"]
[White "Shahaliyev"]
[Black "ChainsOfFantasia"]
[Result "1-0"]
[WhiteElo "2677"]
[BlackElo "2495"]
[TimeControl "180+1"]
[EndTime "11:46:51 PST"]
[Termination "Shahaliyev won by resignation"]

1. Nf3 {[%clk 0:03:00.9]} 1... Nf6 {[%clk 0:02:59.6]} 2. g3 {[%clk 0:02:59.4]}
2... d5 {[%clk 0:02:59.7]} 3. Bg2 {[%clk 0:03:00.3]} 3... e6 {[%clk 0:03:00.1]}
4. O-O {[%clk 0:03:01.2]} 4... Be7 {[%clk 0:03:01]} 5. c4 {[%clk 0:03:01]} 5...
O-O {[%clk 0:03:01.4]} 6. b3 {[%clk 0:03:01.2]} 6... c5 {[%clk 0:03:01.4]} 7. e3
{[%clk 0:03:01.2]} 7... Nc6 {[%clk 0:03:01.1]} 8. Bb2 {[%clk 0:03:01.6]} 8... d4
{[%clk 0:03:01.2]} 9. exd4 {[%clk 0:03:01.5]} 9... cxd4 {[%clk 0:03:02.1]} 10.
Re1 {[%clk 0:03:01.1]} 10... Ng4 {[%clk 0:03:02.6]} 11. h3 {[%clk 0:02:59.3]}
11... Nh6 {[%clk 0:03:01.5]} 12. d3 {[%clk 0:02:16.9]} 12... f6 {[%clk
0:02:57.4]} 13. Nbd2 {[%clk 0:02:17.1]} 13... e5 {[%clk 0:02:57.1]} 14. a3
{[%clk 0:02:17.3]} 14... a5 {[%clk 0:02:54.7]} 15. Ne4 {[%clk 0:02:17.3]} 15...
Bd7 {[%clk 0:02:50.8]} 16. Qd2 {[%clk 0:02:16.8]} 16... Rb8 {[%clk 0:02:49.6]}
17. Qc2 {[%clk 0:02:11.7]} 17... Nf7 {[%clk 0:02:47.3]} 18. Bc1 {[%clk
0:02:10.5]} 18... f5 {[%clk 0:02:39.4]} 19. Ned2 {[%clk 0:02:10.2]} 19... Qc7
{[%clk 0:02:33.4]} 20. Bb2 {[%clk 0:02:07]} 20... Bf6 {[%clk 0:02:31.1]} 21. Nh2
{[%clk 0:02:04.8]} 21... Rbe8 {[%clk 0:02:20.9]} 22. b4 {[%clk 0:02:04.4]} 22...
axb4 {[%clk 0:02:18.2]} 23. axb4 {[%clk 0:02:05.3]} 23... Nxb4 {[%clk
0:02:18.5]} 24. Qb3 {[%clk 0:02:05.1]} 24... Nc6 {[%clk 0:02:17.7]} 25. Ba3
{[%clk 0:02:05.6]} 25... Be7 {[%clk 0:02:15.9]} 26. Bxe7 {[%clk 0:02:00.4]}
26... Rxe7 {[%clk 0:02:16.8]} 27. Bd5 {[%clk 0:01:56.8]} 27... Kh8 {[%clk
0:02:14.8]} 28. Nhf3 {[%clk 0:01:56.4]} 28... f4 {[%clk 0:01:26.3]} 29. g4
{[%clk 0:01:45.7]} 29... h5 {[%clk 0:01:25.1]} 30. Kg2 {[%clk 0:01:41.1]} 30...
hxg4 {[%clk 0:01:20.7]} 31. hxg4 {[%clk 0:01:42]} 31... Bxg4 {[%clk 0:01:21]}
32. Rh1+ {[%clk 0:01:05.1]} 32... Nh6 {[%clk 0:01:20.5]} 33. Rh4 {[%clk
0:01:05.7]} 33... Qd7 {[%clk 0:01:11.9]} 34. Rah1 {[%clk 0:01:05.1]} 34... Qf5
{[%clk 0:01:10.1]} 35. Be4 {[%clk 0:00:55.6]} 35... Qf6 {[%clk 0:01:06.6]} 36.
Rxg4 {[%clk 0:00:55]} 36... Kg8 {[%clk 0:00:59.3]} 37. Rg6 {[%clk 0:00:53.3]}
37... Qf7 {[%clk 0:00:56.9]} 38. Bd5 {[%clk 0:00:52.1]} 1-0

[Event "*** Titled Tuesday Blitz"]
[Site "Chess.com"]
[Date "2021.02.16"]
[Round "9"]
[White "Ave_Mariia"]
[Black "Susal_De_Silva"]
[Result "1-0"]
[WhiteElo "2496"]
[BlackElo "2606"]
[TimeControl "180+1"]
[EndTime "11:46:55 PST"]
[Termination "Ave_Mariia won by resignation"]

1. d4 {[%clk 0:03:00.9]} 1... Nf6 {[%clk 0:02:59.3]} 2. c4 {[%clk 0:03:01.2]}
2... e6 {[%clk 0:02:59.5]} 3. g3 {[%clk 0:03:01.2]} 3... d5 {[%clk 0:02:59.3]}
4. Nf3 {[%clk 0:03:01.3]} 4... c6 {[%clk 0:02:59.5]} 5. Bg2 {[%clk 0:03:01.1]}
5... Be7 {[%clk 0:03:00.2]} 6. O-O {[%clk 0:03:00.2]} 6... O-O {[%clk
0:03:00.9]} 7. Nbd2 {[%clk 0:03:00.3]} 7... b6 {[%clk 0:03:01.4]} 8. Qc2 {[%clk
0:03:00.1]} 8... Nbd7 {[%clk 0:03:01.2]} 9. e4 {[%clk 0:02:59.8]} 9... Bb7
{[%clk 0:03:01.6]} 10. e5 {[%clk 0:02:56.8]} 10... Ne8 {[%clk 0:03:01.9]} 11.
cxd5 {[%clk 0:02:57.5]} 11... cxd5 {[%clk 0:03:01.5]} 12. Re1 {[%clk 0:02:57.4]}
12... Rc8 {[%clk 0:03:02.1]} 13. Qa4 {[%clk 0:02:57.3]} 13... a6 {[%clk
0:03:01.5]} 14. Nf1 {[%clk 0:02:55.2]} 14... b5 {[%clk 0:03:01.6]} 15. Qd1
{[%clk 0:02:54.3]} 15... Qc7 {[%clk 0:03:01.1]} 16. Ne3 {[%clk 0:02:51]} 16...
Nb6 {[%clk 0:03:00.9]} 17. h4 {[%clk 0:02:43.3]} 17... g6 {[%clk 0:02:42.6]} 18.
h5 {[%clk 0:02:31.1]} 18... Ng7 {[%clk 0:02:41.6]} 19. hxg6 {[%clk 0:02:22.8]}
19... fxg6 {[%clk 0:02:39.9]} 20. Ng4 {[%clk 0:02:16.8]} 20... Nf5 {[%clk
0:02:38]} 21. Nh6+ {[%clk 0:02:10.9]} 21... Kh8 {[%clk 0:02:33.8]} 22. Nxf5
{[%clk 0:01:48.8]} 22... gxf5 {[%clk 0:02:32.9]} 23. Ng5 {[%clk 0:01:33.8]}
23... Bxg5 {[%clk 0:02:31.2]} 24. Bxg5 {[%clk 0:01:34.7]} 24... Qf7 {[%clk
0:02:20.6]} 25. Qf3 {[%clk 0:01:30.8]} 25... Qg6 {[%clk 0:02:18.6]} 26. Qf4
{[%clk 0:01:26.9]} 26... Nc4 {[%clk 0:02:14.4]} 27. Bf6+ {[%clk 0:01:25.4]}
27... Kg8 {[%clk 0:02:13]} 28. b3 {[%clk 0:01:23.4]} 28... Nb6 {[%clk
0:01:54.4]} 29. Qh4 {[%clk 0:01:20.9]} 29... Rce8 {[%clk 0:01:47.1]} 30. Bf3
{[%clk 0:01:20.7]} 30... Rxf6 {[%clk 0:00:28.5]} 31. Bh5 {[%clk 0:01:20.6]}
31... Rf7 {[%clk 0:00:17.5]} 32. Bxg6 {[%clk 0:01:20]} 32... hxg6 {[%clk
0:00:18.4]} 33. Qg5 {[%clk 0:01:18.4]} 33... Kg7 {[%clk 0:00:16.7]} 34. Kg2
{[%clk 0:01:18.4]} 34... Rh8 {[%clk 0:00:17.1]} 35. Rh1 {[%clk 0:01:18.4]} 35...
Rxh1 {[%clk 0:00:16]} 36. Rxh1 {[%clk 0:01:19.3]} 1-0